bitfinex-derivatives/quotes_SOLF0:USTF0_20250428
["timestamp","ask_amount","ask_price","bid_price","bid_amount"]
[1745855686598,6.849,145.96,145.93,6.8499]
[1745855686797,6.849,145.96,145.9,27.78]
[1745855686998,6.0493,145.99,145.9,27.78]
[1745855687198,6.0493,145.99,145.92,6.8503]
[1745855687394,6.0493,145.99,145.9,27.78]
[1745855687898,6.8497,145.94,145.91,6.8508]
[1745855688095,6.0493,145.99,145.9,27.78]
[1745855688602,6.85,145.94,145.91,6.851]
[1745855688997,6.8507,145.92,145.9,27.78]
[1745855689194,23.78795149,145.97,145.9,27.78]
[1745855689597,23.78795149,145.97,145.9,34.6312]
[1745855689598,6.8501,145.94,145.9,34.6312]
[1745855689799,6.8501,145.94,145.9,27.78]
[1745855689999,23.78795149,145.97,145.9,27.78]
[1745855690398,6.8502,145.93,145.9,34.6313]
[1745855690597,23.78795149,145.97,145.9,34.6313]
[1745855691401,6.8505,145.93,145.9,34.6313]
[1745855691596,23.78795149,145.97,145.91,6.8511]
[1745855692100,6.8502,145.93,145.9,34.6314]
[1745855693101,6.8499,145.94,145.91,6.851]
[1745855694499,23.78795149,145.97,145.9,27.78]
[1745855694904,6.0493,145.99,145.87,492.76]
[1745855694905,23.78795149,145.94,145.87,520.56]
[1745855695101,23.78795149,145.94,145.87,27.8]
[1745855695301,6.2326,145.93,145.87,27.8]
[1745855695496,6.2326,145.93,145.85,361.0]
[1745855695702,6.8522,145.89,145.86,6.8533]
[1745855696203,6.8522,145.89,145.84,27.8]
[1745855696502,6.8527,145.88,145.84,27.8]
[1745855696899,6.8527,145.88,145.85,6.8537]
[1745855697305,6.8527,145.88,145.84,27.8]
[1745855697502,6.8527,145.88,145.85,6.8538]
[1745855697801,6.2326,145.93,145.84,27.8]
[1745855698204,6.2326,145.93,145.86,6.8534]
[1745855698405,6.2326,145.93,145.84,27.8]
[1745855698806,6.8523,145.89,145.86,6.8534]
[1745855699106,2.0993,145.93,145.85,23.78795149]
[1745855699295,6.8504,145.93,145.9,6.8513]
[1745855699499,27.8,145.96,145.85,23.78795149]
[1745855699805,6.8509,145.92,145.89,6.8518]
[1745855700105,27.8,145.96,145.88,27.82]
[1745855701606,6.8504,145.93,145.88,27.82]
[1745855702105,27.8,145.96,145.89,6.8517]
[1745855702806,6.8505,145.93,145.9,6.8515]
[1745855704206,6.8508,145.92,145.9,6.8515]
[1745855704407,27.8,145.96,145.89,6.8518]
[1745855704704,23.78795149,145.94,145.88,27.82]
[1745855705008,23.78795149,145.94,145.85,27.78]
[1745855705307,6.8511,145.91,145.88,6.8523]
[1745855705805,6.8511,145.91,145.85,27.78]
[1745855706005,6.8517,145.9,145.85,27.78]
[1745855706611,23.78795149,145.94,145.85,27.78]
[1745855707404,6.8523,145.89,145.86,6.8532]
[1745855707605,27.78,145.92,145.85,27.78]
[1745855707805,2.0624,145.91,145.85,27.78]
[1745855708006,6.8523,145.89,145.85,27.78]
[1745855708506,6.8523,145.89,145.86,6.8531]
[1745855708908,6.8526,145.88,145.86,6.8531]
[1745855710105,6.8526,145.88,145.85,27.78]
[1745855710106,6.8526,145.88,145.85,34.6337]
[1745855710408,6.8526,145.88,145.85,27.78]
[1745855710708,6.8523,145.89,145.86,6.8532]
[1745855710910,2.0624,145.91,145.86,6.8532]
[1745855711306,6.8526,145.88,145.86,6.8532]
[1745855712310,2.0624,145.91,145.86,6.8532]
[1745855712311,6.8523,145.89,145.86,6.8532]
[1745855712512,2.0624,145.91,145.86,6.8532]
[1745855712911,6.8527,145.88,145.86,6.8532]
[1745855713413,6.8525,145.89,145.86,6.8532]
[1745855713711,2.0624,145.91,145.86,6.8532]
[1745855714212,2.0624,145.91,145.85,27.78]
[1745855714213,6.8526,145.88,145.85,34.6338]
[1745855714409,25.85035149,145.91,145.85,27.78]
[1745855714717,29.94765149,145.91,145.82,29.8419]
[1745855715013,29.94765149,145.91,145.82,27.78]
[1745855715205,6.1597,145.91,145.82,51.56795149]
[1745855715512,6.8522,145.89,145.86,6.8532]
[1745855715716,6.8522,145.89,145.82,51.56795149]
[1745855716106,6.8512,145.91,145.82,27.78]
[1745855716305,31.6931,145.95,145.85,23.78795149]
[1745855716511,31.6931,145.95,145.89,6.8517]
[1745855717116,31.6931,145.95,145.9,6.8514]
[1745855717311,6.8504,145.93,145.9,6.8514]
[1745855717508,27.78,145.98,145.9,27.78]
[1745855717715,1.19276117,146.0,145.9,27.78]
[1745855717916,6.8481,145.98,145.9,27.78]
[1745855718116,33.8378,146.01,145.9,27.78]
[1745855718414,6.8484,145.97,145.9,27.78]
[1745855718614,33.8378,146.01,145.9,27.78]
[1745855718913,33.8378,146.01,145.91,6.851]
[1745855719113,23.78795149,145.99,145.9,27.78]
[1745855719514,6.8501,145.94,145.9,27.78]
[1745855719715,23.78795149,145.99,145.9,27.78]
[1745855720114,6.8492,145.95,145.91,6.8509]
[1745855720911,6.8497,145.94,145.91,6.8509]
[1745855721215,23.78795149,145.96,145.9,27.78]
[1745855721719,2.0131,145.95,145.9,27.78]
[1745855722417,27.78,146.0,145.9,27.78]
[1745855722610,29.8688,146.0,145.9,27.78]
[1745855723215,23.78795149,145.97,145.9,27.78]
[1745855723817,6.8493,145.95,145.91,6.851]
[1745855724512,6.8493,145.95,145.92,6.8504]
[1745855724716,6.8497,145.94,145.92,6.8504]
[1745855724914,6.8497,145.94,145.9,27.78]
[1745855725417,6.8494,145.95,145.9,27.78]
[1745855725917,23.78795149,145.97,145.91,6.8508]
[1745855726217,6.85,145.94,145.91,6.8508]
[1745855727314,6.8493,145.95,145.93,6.85]
[1745855727516,29.8688,146.0,145.93,6.85]
[1745855728018,6.8491,145.96,145.93,6.85]
[1745855728219,23.78795149,145.99,145.92,6.8504]
[1745855728420,6.8492,145.95,145.92,6.8504]
[1745855728819,23.78795149,145.99,145.92,6.8504]
[1745855729020,6.8497,145.94,145.91,6.8508]
[1745855729220,23.78795149,145.99,145.9,27.78]
[1745855730221,6.8495,145.95,145.92,6.8504]
[1745855730423,6.8495,145.95,145.9,27.78]
[1745855730622,23.78795149,145.99,145.9,27.78]
[1745855730822,6.849,145.96,145.93,6.8499]
[1745855731919,6.8493,145.95,145.93,6.8499]
[1745855732323,23.78795149,145.99,145.93,6.8499]
[1745855732623,493.14,146.1,145.94,27.76]
[1745855732823,23.78795149,146.04,145.95,27.76]
[1745855733022,6.8462,146.02,145.98,6.8475]
[1745855733221,23.78795149,146.04,145.95,27.76]
[1745855733518,27.76,146.07,145.95,27.76]
[1745855733723,27.76,146.07,145.97,23.78795149]
[1745855734020,2.1087,146.06,145.97,23.78795149]
[1745855734223,6.8448,146.05,146.01,6.8461]
[1745855734724,6.8451,146.04,146.01,6.8461]
[1745855734924,6.1073,146.06,145.99,27.72]
[1745855735124,23.78795149,146.05,145.99,27.72]
[1745855735423,6.8463,146.02,145.99,27.72]
[1745855735726,23.78795149,146.05,145.99,27.72]
[1745855735928,23.78795149,146.05,145.96,27.72]
[1745855736122,2.1087,146.06,145.97,23.78795149]
[1745855736521,8.9531,146.06,145.97,23.78795149]
[1745855736723,2.1087,146.06,146.02,6.8456]
[1745855736927,2.1087,146.06,146.0,27.72]
[1745855737225,8.953,146.06,146.0,27.72]
[1745855737529,2.1087,146.06,146.0,27.72]
[1745855737931,6.8448,146.05,146.02,6.8457]
[1745855739134,6.845,146.04,146.01,6.8463]
[1745855739429,2.1087,146.06,146.0,27.72]
[1745855739631,6.8458,146.03,146.0,27.72]
[1745855739832,2.1087,146.06,146.0,27.72]
[1745855740028,23.78795149,146.05,145.97,27.72]
[1745855740326,1.1919441,146.1,145.99,23.78795149]
[1745855740528,23.78795149,146.17,146.03,23.78795149]
[1745855740733,29.8038,146.16,146.04,27.72]
[1745855741032,23.78795149,146.14,146.04,27.72]
[1745855741331,53.59175149,146.16,146.06,6.844]
[1745855741533,53.59175149,146.16,146.04,27.72]
[1745855741934,6.8417,146.12,146.06,6.8439]
[1745855742134,53.59175149,146.16,146.06,6.8439]
[1745855742433,53.59175149,146.16,146.04,27.72]
[1745855742434,23.78795149,146.13,146.04,27.72]
[1745855742635,27.72,146.12,146.04,27.72]
[1745855742834,1.9351,146.11,146.04,27.72]
[1745855743036,1.9351,146.11,146.06,6.8437]
[1745855743235,1.9351,146.11,146.04,27.72]
[1745855743436,4.0072,146.11,146.04,27.72]
[1745855744732,10.8489,146.11,146.07,6.8432]
[1745855744935,10.8489,146.11,146.04,27.72]
[1745855745134,4.0072,146.11,146.04,27.72]
[1745855745335,4.0072,146.11,146.07,6.8432]
[1745855745627,23.78795149,146.1,145.98,27.72]
[1745855745828,23.78795149,146.06,145.98,27.72]
[1745855746030,4.097,146.05,145.98,27.72]
[1745855746531,2.0807,146.05,145.98,27.72]
[1745855746836,2.0163,146.09,145.98,27.72]
[1745855747033,25.80425149,146.09,145.94,362.9426]
[1745855747236,1.984,146.08,145.96,23.78795149]
[1745855747431,6.8439,146.07,146.02,6.8456]
[1745855747632,1.984,146.08,146.02,6.8456]
[1745855748038,6.8441,146.06,146.02,6.8456]
[1745855748239,1.984,146.08,146.0,27.72]
[1745855748436,6.8444,146.06,146.0,27.72]
[1745855748638,1.984,146.08,146.01,6.8463]
[1745855749139,6.8449,146.05,146.01,6.8463]
[1745855749540,6.845,146.04,146.0,34.5667]
[1745855749841,6.845,146.04,146.0,27.72]
[1745855750536,6.8455,146.03,146.0,27.72]
[1745855750838,27.72,146.07,146.0,27.72]
[1745855751043,23.78795149,146.06,146.0,27.72]
[1745855751340,23.78795149,146.06,145.97,27.72]
[1745855751641,6.8458,146.03,145.99,6.8473]
[1745855752239,23.78795149,146.06,145.98,6.8476]
[1745855752941,6.8463,146.02,145.98,6.8476]
[1745855753342,23.78795149,146.06,145.97,27.72]
[1745855753542,27.72,146.07,145.97,51.50795149]
[1745855753942,27.72,146.07,146.02,6.8458]
[1745855754343,6.8447,146.05,146.02,6.8458]
[1745855754542,27.72,146.07,146.02,6.8458]
[1745855755137,1.984,146.08,145.97,23.78795149]
[1745855755338,1.984,146.08,146.0,23.78795149]
[1745855755543,27.72,146.13,146.03,23.78795149]
[1745855755743,27.72,146.13,146.04,27.72]
[1745855756040,6.8421,146.11,146.04,27.72]
[1745855756231,27.72,146.13,146.04,27.72]
[1745855756745,6.8424,146.1,146.07,6.8434]
[1745855756944,27.72,146.13,146.04,27.72]
[1745855757143,6.8429,146.09,146.04,27.72]
[1745855757442,27.72,146.13,146.05,6.8441]
[1745855757638,6.8432,146.08,146.05,6.8441]
[1745855758144,6.8428,146.09,146.06,6.844]
[1745855758546,27.72,146.13,146.04,27.72]
[1745855758744,27.72,146.13,146.05,6.8442]
[1745855758947,27.72,146.13,146.04,27.72]
[1745855761046,27.72,146.13,146.04,34.5648]
[1745855761250,27.72,146.13,146.04,27.72]
[1745855761550,27.72,146.13,146.05,6.8444]
[1745855761750,6.8435,146.08,146.05,6.8444]
[1745855762448,27.72,146.13,146.04,27.72]
[1745855763052,6.8437,146.07,146.04,34.5647]
[1745855763346,27.72,146.13,146.04,27.72]
[1745855763547,27.72,146.13,146.01,27.68]
[1745855763548,23.78795149,146.1,146.01,27.68]
[1745855763748,33.8103,146.09,146.01,27.68]
[1745855764552,6.8453,146.04,146.01,27.68]
[1745855764752,33.8103,146.09,146.01,27.68]
[1745855765246,6.8459,146.02,145.99,34.527]
[1745855765449,23.78795149,146.07,145.99,34.527]
[1745855766253,6.8459,146.03,145.99,34.527]
[1745855766452,23.78795149,146.07,145.99,34.527]
[1745855766955,6.8458,146.03,145.99,34.527]
[1745855767555,23.78795149,146.07,145.99,27.68]
[1745855768349,6.8462,146.02,145.99,27.68]
[1745855770352,6.8464,146.01,145.99,27.68]
[1745855770652,57.59825149,146.09,145.99,27.68]
[1745855770846,6.8463,146.02,145.99,34.5273]
[1745855773561,6.8456,146.03,146.0,6.8468]
[1745855773858,57.59825149,146.09,145.99,27.68]
[1745855776160,57.59825149,146.09,145.99,34.5273]
[1745855776460,57.59825149,146.09,145.99,27.68]
[1745855776660,6.846,146.02,145.99,34.5271]
[1745855777455,6.846,146.02,145.99,27.68]
[1745855778362,6.8457,146.03,145.99,34.5271]
[1745855778556,57.59825149,146.09,145.99,34.5271]
[1745855778958,6.8462,146.02,145.99,34.5271]
[1745855780063,6.8457,146.03,146.0,6.8468]
[1745855780262,57.59825149,146.09,145.99,27.68]
[1745855781263,6.8461,146.02,145.99,34.5271]
[1745855781663,57.59825149,146.09,145.99,27.68]
[1745855781965,6.8457,146.03,146.0,6.8469]
[1745855783165,6.8459,146.02,145.99,34.5271]
[1745855783665,57.59825149,146.09,145.99,27.68]
[1745855783868,6.8459,146.03,146.0,6.8468]
[1745855784067,57.59825149,146.09,145.99,27.68]
[1745855784466,57.59825149,146.09,146.01,6.846]
[1745855784966,6.8453,146.04,146.01,6.846]
[1745855785171,57.59825149,146.09,145.99,27.68]
[1745855785668,23.78795149,146.05,145.93,854.12]
[1745855785965,23.78795149,146.02,145.94,27.68]
[1745855786665,6.8481,145.98,145.94,27.68]
[1745855787069,23.78795149,146.02,145.94,27.68]
[1745855787771,25.79245149,146.02,145.94,27.68]
[1745855788669,6.8486,145.97,145.94,27.68]
[1745855789071,25.79245149,146.02,145.94,27.68]
[1745855789270,6.8488,145.96,145.94,27.68]
[1745855789571,25.79245149,146.02,145.94,27.68]
[1745855789766,6.8492,145.95,145.94,27.68]
[1745855791173,6.8497,145.94,145.92,8.9822]
[1745855791472,29.78805149,146.02,145.92,8.9822]
[1745855791967,6.8495,145.95,145.92,8.9822]
[1745855792171,27.68,145.97,145.85,420.85332298]
[1745855792372,6.852,145.9,145.86,2.0237]
[1745855792573,27.68,145.96,145.86,8.877]
[1745855792763,51.46795149,145.96,145.86,8.877]
[1745855792967,6.8517,145.9,145.86,2.0237]
[1745855793168,6.8517,145.9,145.87,6.8527]
[1745855793364,51.46795149,145.96,145.87,6.8527]
[1745855793564,6.8513,145.91,145.87,6.8527]
[1745855793872,6.8513,145.91,145.88,6.8523]
[1745855794972,6.8508,145.92,145.89,6.852]
[1745855795173,51.46795149,145.96,145.86,2.0237]
[1745855795575,6.8515,145.91,145.87,6.8527]
[1745855795766,6.8515,145.91,145.86,2.0237]
[1745855796177,6.8515,145.91,145.88,6.8525]
[1745855796576,1.9882,145.95,145.86,2.0237]
[1745855796782,23.78795149,145.93,145.86,6.8533]
[1745855796982,23.78795149,145.93,145.85,388.68]
[1745855797578,6.8514,145.91,145.88,6.8525]
[1745855798281,6.8516,145.9,145.87,6.8528]
[1745855798577,23.78795149,145.93,145.85,388.68]
[1745855798778,6.8513,145.91,145.88,6.852]
[1745855799178,6.1157,145.95,145.85,388.68]
[1745855799478,6.8508,145.92,145.89,6.8518]
[1745855799679,6.8508,145.92,145.89,34.5118]
[1745855800281,1.1928225,146.01,145.91,23.78795149]
[1745855800477,3.9838,146.04,145.91,23.78795149]
[1745855800676,6.0066,146.04,145.91,23.78795149]
[1745855800877,6.8462,146.02,145.91,23.78795149]
[1745855801277,6.8467,146.01,145.96,6.8485]
[1745855801476,6.8467,146.01,145.96,34.5085]
[1745855801679,23.78795149,146.02,145.96,27.66]
[1745855802079,6.847,146.0,145.96,27.66]
[1745855802278,23.78795149,146.02,145.96,27.66]
[1745855802481,1.19222995,146.07,145.96,27.66]
[1745855802773,23.78795149,146.07,145.96,27.66]
[1745855803282,6.8447,146.05,146.01,6.8463]
[1745855803482,23.78795149,146.07,146.0,27.66]
[1745855804077,30.63165149,146.07,146.0,27.66]
[1745855804783,23.78795149,146.07,146.0,27.66]
[1745855805283,6.8442,146.06,146.03,6.8452]
[1745855805480,6.1322,146.08,146.0,27.66]
[1745855805980,23.78795149,146.07,145.98,27.66]
[1745855806484,6.8447,146.05,146.01,6.8461]
[1745855808183,6.8451,146.04,146.01,6.8461]
[1745855809980,6.8455,146.03,146.0,6.8466]
[1745855810182,27.64,146.06,145.98,27.66]
[1745855810382,6.8467,146.01,145.97,6.8478]
[1745855810583,23.78795149,146.03,145.95,27.64]
[1745855810986,6.8463,146.02,145.98,6.8476]
[1745855811186,23.78795149,146.03,145.95,27.64]
[1745855811486,6.8471,146.0,145.97,6.8481]
[1745855812988,27.64,146.02,145.95,27.64]
[1745855813282,23.78795149,146.0,145.95,27.64]
[1745855813488,4.0243,145.99,145.92,27.64]
[1745855814188,29.6433,146.02,145.92,27.64]
[1745855814586,6.8469,146.0,145.92,27.64]
[1745855815189,6.8466,146.01,145.92,27.64]
[1745855815386,23.78795149,146.0,145.9,388.64]
[1745855815585,6.8488,145.96,145.93,6.8499]
[1745855815786,6.8488,145.96,145.9,388.64]
[1745855816091,6.8495,145.95,145.9,27.64]
[1745855816589,4.0198,146.0,145.9,27.64]
[1745855817089,4.0198,146.0,145.93,6.8498]
[1745855817589,6.8491,145.96,145.93,6.8498]
[1745855818192,6.8491,145.96,145.9,27.64]
[1745855818193,4.0198,146.0,145.94,27.66]
[1745855819285,27.66,146.06,145.95,23.78795149]
[1745855819489,6.8458,146.03,145.95,23.78795149]
[1745855819693,3.9678,146.06,145.98,23.78795149]
[1745855819894,3.9678,146.06,146.02,6.8458]
[1745855820196,3.9678,146.06,145.94,361.0]
[1745855820395,27.66,146.05,145.98,6.8477]
[1745855820695,23.78795149,146.02,145.95,27.66]
[1745855822193,23.78795149,145.99,145.94,361.0]
[1745855822393,1.9285,145.98,145.92,27.66]
[1745855822594,23.78795149,145.96,145.92,27.66]
[1745855822996,1.9285,145.98,145.92,27.66]
[1745855823391,6.849,145.96,145.92,27.66]
[1745855823694,1.9285,145.98,145.92,27.66]
[1745855824196,6.849,145.96,145.92,34.5102]
[1745855824393,6.849,145.96,145.92,27.66]
[1745855824588,1.9285,145.98,145.92,27.66]
[1745855826398,6.8489,145.96,145.93,6.8499]
[1745855828298,6.8489,145.96,145.94,6.8496]
[1745855828499,6.8485,145.97,145.94,6.8496]
[1745855828795,1.9285,145.98,145.96,6.8484]
[1745855829001,1.19239335,146.06,145.96,361.0]
[1745855829195,2.137,146.1,145.99,23.78795149]
[1745855829397,2.137,146.1,146.0,494.9665]
[1745855829593,51.40795149,146.16,146.0,494.9665]
[1745855829799,23.78795149,146.12,146.06,6.8437]
[1745855829994,30.62955149,146.12,146.06,27.62]
[1745855830200,23.78795149,146.12,146.06,27.62]
[1745855830400,23.78795149,146.09,146.06,27.62]
[1745855830703,23.78795149,146.09,146.0,854.0]
[1745855830908,23.78795149,146.06,146.01,6.8462]
[1745855831204,30.63225149,146.06,146.0,520.62]
[1745855831398,23.78795149,146.06,146.0,520.62]
[1745855832102,23.78795149,146.06,145.93,384.78795149]
[1745855832103,23.78795149,146.03,145.93,853.94]
[1745855832295,23.78795149,146.03,145.94,27.62]
[1745855832500,23.78795149,146.03,145.96,6.8486]
[1745855832803,6.8474,145.99,145.94,27.62]
[1745855833000,23.78795149,146.03,145.94,27.62]
[1745855833201,23.78795149,146.0,145.94,27.62]
[1745855833601,2.1181,145.99,145.94,27.62]
[1745855833805,6.848,145.98,145.94,27.62]
[1745855835010,6.848,145.98,145.94,34.4695]
[1745855835197,23.78795149,145.98,145.94,27.62]
[1745855835604,8.9656,145.99,145.95,6.8488]
[1745855835806,4.0845,146.08,145.95,23.78795149]
[1745855836005,23.78795149,146.06,145.95,23.78795149]
[1745855836202,6.8455,146.03,145.99,6.8473]
[1745855836404,23.78795149,146.06,145.95,23.78795149]
[1745855836603,23.78795149,146.06,145.96,27.62]
[1745855836800,23.78795149,146.06,146.01,6.8462]
[1745855837005,6.8448,146.05,145.96,27.62]
[1745855837306,23.78795149,146.06,145.96,27.62]
[1745855837508,6.8451,146.04,145.96,27.62]
[1745855837909,6.8451,146.04,146.0,6.8468]
[1745855838210,23.78795149,146.06,145.96,27.62]
[1745855838405,51.40795149,146.06,145.98,6.8475]
[1745855839308,51.40795149,146.06,145.99,6.8473]
[1745855839912,6.8462,146.02,145.99,6.8473]
[1745855840110,51.40795149,146.06,145.98,6.8476]
[1745855840312,23.78795149,146.03,145.94,361.0]
[1745855840513,2.0295,146.02,145.95,27.62]
[1745855840812,4.0368,146.02,145.95,27.62]
[1745855841016,6.8473,146.0,145.95,27.62]
[1745855841312,4.0368,146.02,145.95,27.62]
[1745855841514,6.847,146.0,145.95,27.62]
[1745855842214,6.847,146.0,145.97,6.848]
[1745855842615,6.8476,145.99,145.95,27.62]
[1745855843415,6.8476,145.99,145.96,6.8486]
[1745855844214,4.0368,146.02,145.95,34.4689]
[1745855844415,2.1193,146.01,145.95,34.4689]
[1745855844814,6.8479,145.98,145.95,34.4689]
[1745855845011,23.78795149,146.0,145.95,27.62]
[1745855845313,6.8487,145.97,145.95,27.62]
[1745855846414,2.1193,146.01,145.86,32.17332298]
[1745855846617,2.1193,146.01,145.86,59.79332298]
[1745855846618,23.78795149,145.94,145.86,59.79332298]
[1745855846813,23.78795149,145.94,145.87,6.8528]
[1745855847018,23.78795149,145.94,145.86,27.62]
[1745855847220,23.78795149,145.94,145.86,34.4731]
[1745855847517,6.8513,145.91,145.86,34.4731]
[1745855847714,23.78795149,145.94,145.86,27.62]
[1745855848018,6.8512,145.91,145.86,27.62]
[1745855848920,23.78795149,145.94,145.86,27.62]
[1745855849420,6.8519,145.9,145.86,34.4731]
[1745855849720,23.78795149,145.94,145.86,27.62]
[1745855850019,23.78795149,145.91,145.86,27.62]
[1745855850719,6.8523,145.89,145.86,27.62]
[1745855851021,23.78795149,145.91,145.86,27.62]
[1745855851318,27.62,145.92,145.86,27.62]
[1745855851521,6.8515,145.91,145.86,34.4732]
[1745855851819,6.8515,145.91,145.86,27.62]
[1745855852022,6.8516,145.9,145.87,6.8527]
[1745855852221,6.8516,145.9,145.86,27.62]
[1745855852622,6.8516,145.9,145.87,6.8526]
[1745855853020,6.8513,145.91,145.87,6.8526]
[1745855853523,51.40795149,145.92,145.87,6.8526]
[1745855853816,51.40795149,145.92,145.86,27.62]
[1745855854017,6.8509,145.92,145.86,27.62]
[1745855854624,6.8502,145.93,145.86,27.62]
[1745855854823,55.32835149,145.95,145.86,27.62]
[1745855855526,27.6,145.98,145.88,23.78795149]
[1745855855726,27.6,146.0,145.89,2.0259]
[1745855855921,27.6,146.0,145.9,27.6]
[1745855856524,6.8486,145.97,145.94,6.8494]
[1745855856726,6.8486,145.97,145.9,27.6]
[1745855856927,27.6,146.0,145.9,27.6]
[1745855857122,6.8477,145.99,145.96,6.8484]
[1745855857322,6.8477,145.99,145.95,27.6]
[1745855857626,6.8477,145.99,145.96,6.8485]
[1745855857817,6.8479,145.98,145.95,27.6]
[1745855858127,6.8479,145.98,145.95,34.4488]
[1745855858326,6.2496,146.01,145.95,27.6]
[1745855858527,6.8476,145.99,145.95,27.6]
[1745855858825,6.8476,145.99,145.96,6.8485]
[1745855859130,6.8481,145.98,145.95,27.6]
[1745855859426,6.8481,145.98,145.95,34.449]
[1745855859618,27.6,146.08,145.95,27.6]
[1745855859822,23.78795149,146.06,145.95,27.6]
[1745855860226,2.0615,146.05,145.95,27.6]
[1745855860627,6.8462,146.02,145.95,27.6]
[1745855860818,2.0615,146.05,145.95,27.6]
[1745855861219,2.0615,146.05,145.96,2.0093]
[1745855861422,8.9063,146.05,145.96,2.0093]
[1745855861624,2.0615,146.05,145.96,2.0093]
[1745855862130,6.8458,146.03,146.0,6.8468]
[1745855862630,6.8452,146.04,146.01,6.846]
[1745855862928,2.0615,146.05,145.99,27.6]
[1745855863132,8.9062,146.05,146.01,6.8459]
[1745855863327,8.9062,146.05,145.99,27.6]
[1745855863527,2.0763,146.07,145.99,27.6]
[1745855863723,6.8439,146.07,145.99,27.6]
[1745855864130,2.1181,146.08,145.99,27.6]
[1745855864631,8.9616,146.08,145.99,27.6]
[1745855865132,8.9616,146.08,146.05,6.8445]
[1745855865330,2.0586,146.09,146.03,27.58]
[1745855865530,25.87615149,146.12,146.03,27.58]
[1745855865731,6.8422,146.1,146.03,27.58]
[1745855866031,25.87615149,146.12,146.03,27.58]
[1745855866232,23.78795149,146.12,146.06,6.8439]
[1745855866531,23.78795149,146.12,146.03,27.58]
[1745855866928,6.8423,146.1,146.07,6.8433]
[1745855867432,6.8427,146.09,146.06,6.8438]
[1745855867832,6.8434,146.08,146.05,6.8444]
[1745855868634,6.8434,146.08,146.06,6.844]
[1745855869735,6.8434,146.08,146.05,6.8444]
[1745855870635,6.8434,146.08,146.06,6.844]
[1745855871235,6.8434,146.08,146.05,6.8443]
[1745855871437,6.8434,146.08,146.03,27.58]
[1745855871631,29.6281,146.13,146.03,27.58]
[1745855872036,29.6281,146.13,146.06,6.8437]
[1745855872238,29.6281,146.13,146.03,27.58]
[1745855872538,29.6281,146.13,146.05,6.8441]
[1745855872734,29.6281,146.13,146.03,27.58]
[1745855873140,6.843,146.09,146.06,6.844]
[1745855874136,6.843,146.09,146.07,6.8435]
[1745855874840,6.8421,146.11,146.07,6.8435]
[1745855875440,6.8423,146.1,146.07,6.8435]
[1745855875940,53.41605149,146.13,146.07,6.8435]
[1745855876843,6.8419,146.11,146.07,6.8435]
[1745855877438,23.78795149,146.09,146.0,388.58]
[1745855877741,2.012,146.08,146.0,388.58]
[1745855877941,2.012,146.08,146.02,6.8457]
[1745855878339,2.012,146.08,146.02,6.8456]
[1745855878635,2.012,146.08,146.0,27.58]
[1745855878841,2.012,146.08,146.03,6.8452]
[1745855879142,6.8438,146.07,146.03,6.8452]
[1745855879340,2.012,146.08,146.0,27.58]
[1745855879536,2.012,146.08,146.04,6.8446]
[1745855879732,6.8438,146.07,146.0,27.58]